fUSD/lending_fUSD_20250426
["ID","MTS","AMOUNT","RATE_DAILY","PERIOD"]
[359090614,1745703039421,-400.0,0.00019794,2]
[359090617,1745703039431,-500.0,0.00019794,2]
[359090620,1745703039442,-400.0,0.00019794,2]
[359090622,1745703039454,-400.0,0.00019794,2]
[359090624,1745703039464,-520.82,0.00019794,2]
[359090626,1745703039474,-400.0,0.00019794,2]
[359090628,1745703039485,-400.0,0.00019794,2]
[359090630,1745703039495,-174380.184524,0.00019794,2]
[359090633,1745703039506,-400.0,0.00019794,2]
[359090635,1745703039521,-500.0,0.00019794,2]
[359090637,1745703039531,-505.87036558,0.00019794,2]
[359090639,1745703039542,-400.0,0.00019795,2]
[359090641,1745703039553,-400.0,0.00019795,2]
[359090643,1745703039563,-500.0,0.00019795,2]
[359090645,1745703039574,-400.0,0.00019795,2]
[359090647,1745703039584,-500.0,0.00019795,2]
[359090649,1745703039595,-536.65850559,0.00019795,2]
[359090652,1745703039606,-400.0,0.00019795,2]
[359090654,1745703039617,-703.41,0.00019795,2]
[359090656,1745703039630,-544.12091407,0.00019795,2]
[359090658,1745703039640,-400.0,0.00019795,2]
[359090660,1745703039652,-400.0,0.00019795,2]
[359090662,1745703039663,-491.58,0.00019795,2]
[359090664,1745703039674,-400.0,0.00019795,2]
[359090666,1745703039684,-500.0,0.00019795,2]
[359090668,1745703039696,-400.0,0.00019795,2]
[359090670,1745703039707,-400.0,0.00019795,2]
[359090672,1745703039717,-400.0,0.00019795,2]
[359090675,1745703039728,-400.0,0.00019795,2]
[359090677,1745703039739,-400.0,0.00019795,2]
[359090679,1745703039749,-545.43,0.00019795,2]
[359090681,1745703039760,-1079.77,0.00019795,2]
[359090683,1745703039771,-400.0,0.00019795,2]
[359090685,1745703039781,-400.0,0.00019795,2]
[359090687,1745703039792,-400.0,0.00019795,2]
[359090689,1745703039802,-476.63,0.00019795,2]
[359090691,1745703039812,-450.49,0.00019795,2]
[359090693,1745703039822,-488.68,0.00019795,2]
[359090695,1745703039832,-400.0,0.00019795,2]
[359090697,1745703039842,-500.33,0.00019795,2]
[359090700,1745703039853,-438.97,0.00019795,2]
[359090702,1745703039863,-400.0,0.00019795,2]
[359090704,1745703039873,-400.0,0.00019795,2]
[359090706,1745703039884,-400.0,0.00019795,2]
[359090708,1745703039893,-400.0,0.00019795,2]
[359090710,1745703039904,-400.0,0.00019795,2]
[359090712,1745703039914,-400.0,0.00019795,2]
[359090714,1745703039924,-400.0,0.00019795,2]
[359090716,1745703039934,-400.0,0.00019795,2]
[359090718,1745703039944,-500.0,0.00019795,2]
[359090720,1745703039954,-400.0,0.00019795,2]
[359090723,1745703039969,-472.32,0.00019795,2]
[359090725,1745703039978,-400.0,0.00019795,2]
[359090727,1745703039989,-500.0,0.00019795,2]
[359090729,1745703040000,-939.52,0.00019795,2]
[359090731,1745703040011,-424.66,0.00019795,2]
[359090733,1745703040021,-400.0,0.00019795,2]
[359090735,1745703040031,-400.0,0.00019795,2]
[359090737,1745703040041,-400.0,0.00019795,2]
[359090739,1745703040051,-400.0,0.00019795,2]
[359090741,1745703040061,-894.12,0.00019795,2]
[359090743,1745703040071,-400.0,0.00019795,2]
[359090745,1745703040082,-400.0,0.00019795,2]
[359090747,1745703040093,-400.0,0.00019795,2]
[359090749,1745703040103,-400.0,0.00019795,2]
[359090751,1745703040114,-701.53,0.00019795,2]
[359090753,1745703040126,-442.52,0.00019795,2]
[359090755,1745703040136,-400.0,0.00019795,2]
[359090757,1745703040146,-652.62,0.00019795,2]
[359090759,1745703040158,-400.0,0.00019795,2]
[359090761,1745703040169,-500.0,0.00019795,2]
[359090763,1745703040180,-400.0,0.00019795,2]
[359090765,1745703040190,-680.1,0.00019795,2]
[359090767,1745703040200,-400.0,0.00019795,2]
[359090769,1745703040210,-400.0,0.00019795,2]
[359090771,1745703040220,-433.4,0.00019795,2]
[359090773,1745703040230,-400.0,0.00019795,2]
[359090775,1745703040240,-453.89,0.00019795,2]
[359090777,1745703040250,-400.0,0.00019795,2]
[359090779,1745703040260,-400.0,0.00019795,2]
[359090781,1745703040271,-400.0,0.00019795,2]
[359090783,1745703040281,-156.34320295,0.00019795,2]
[359090785,1745703040290,-400.0,0.00019795,2]
[359090787,1745703040300,-400.0,0.00019795,2]
[359090789,1745703040310,-400.0,0.00019795,2]
[359090792,1745703040320,-400.0,0.00019795,2]
[359090794,1745703040330,-400.0,0.00019795,2]
[359090796,1745703040340,-542.92,0.00019795,2]
[359090798,1745703040350,-400.0,0.00019795,2]
[359090800,1745703040359,-400.0,0.00019795,2]
[359090802,1745703040369,-417.12,0.00019795,2]
[359090804,1745703040380,-400.0,0.00019795,2]
[359090806,1745703040390,-400.0,0.00019795,2]
[359090808,1745703040400,-400.0,0.00019795,2]
[359090810,1745703040410,-532.01,0.00019795,2]
[359090812,1745703040420,-400.0,0.00019795,2]
[359090814,1745703040430,-643.82,0.00019795,2]
[359090816,1745703040440,-400.0,0.00019795,2]
[359090818,1745703040450,-400.0,0.00019795,2]
[359090820,1745703040460,-400.0,0.00019795,2]
[359090822,1745703040470,-430.91,0.00019795,2]
[359090824,1745703040480,-400.0,0.00019795,2]
[359090826,1745703040490,-647.33,0.00019795,2]
[359090828,1745703040500,-500.0,0.00019795,2]
[359090830,1745703040509,-434.84,0.00019795,2]
[359090832,1745703040519,-400.0,0.00019795,2]
[359090834,1745703040530,-400.0,0.00019795,2]
[359090836,1745703040539,-400.0,0.00019795,2]
[359090838,1745703040549,-400.0,0.00019795,2]
[359090840,1745703040559,-400.0,0.00019795,2]
[359090842,1745703040570,-400.0,0.00019795,2]
[359090844,1745703040580,-400.0,0.00019795,2]
[359090846,1745703040590,-400.0,0.00019795,2]
[359090848,1745703040600,-400.0,0.00019795,2]
[359090850,1745703040611,-400.0,0.00019795,2]
[359090852,1745703040621,-179.49834234,0.00019795,2]
[359090854,1745703040631,-503.96,0.00019795,2]
[359090856,1745703040643,-632.19,0.00019795,2]
[359090858,1745703040654,-400.0,0.00019795,2]
[359090860,1745703040664,-400.0,0.00019795,2]
[359090863,1745703040686,-402.65,0.00019795,2]
[359090866,1745703040702,-511.35,0.00019795,2]
[359090869,1745703040718,-624.09,0.00019795,2]
[359090871,1745703040733,-400.0,0.00019795,2]
[359090872,1745703040746,-409.99,0.00019795,2]
[359090873,1745703040759,-400.0,0.00019795,2]
[359090874,1745703040773,-400.0,0.00019795,2]
[359090875,1745703040787,-456.36,0.00019795,2]
[359090876,1745703040802,-400.0,0.00019795,2]
[359090877,1745703040816,-400.0,0.00019795,2]
[359090878,1745703040831,-400.0,0.00019795,2]
[359090879,1745703040846,-534.28,0.00019795,2]
[359090880,1745703040859,-681.06,0.00019795,2]
[359090881,1745703040873,-400.0,0.00019795,2]
[359090882,1745703040885,-400.0,0.00019795,2]
[359090883,1745703040896,-542.99,0.00019795,2]
[359090884,1745703040910,-545.51,0.00019795,2]
[359090885,1745703040923,-400.0,0.00019795,2]
[359090886,1745703040938,-96317.18,0.00019795,2]
[359090887,1745703040952,-713.5,0.00019795,2]
[359090889,1745703040967,-400.0,0.00019795,2]
[359090891,1745703040981,-401.78,0.00019795,2]
[359090894,1745703040995,-400.0,0.00019795,2]
[359090896,1745703041009,-400.0,0.00019795,2]
[359090898,1745703041021,-400.0,0.00019795,2]
[359090901,1745703041037,-592.11,0.00019795,2]
[359090903,1745703041050,-400.0,0.00019795,2]
[359090906,1745703041064,-400.0,0.00019795,2]
[359090908,1745703041077,-400.0,0.00019795,2]
[359090911,1745703041091,-407.8,0.00019795,2]
[359090913,1745703041103,-411.2,0.00019795,2]
[359090915,1745703041117,-414.88,0.00019795,2]
[359090918,1745703041131,-500.0,0.00019795,2]
[359090921,1745703041149,-400.0,0.00019795,2]
[359090923,1745703041163,-400.0,0.00019795,2]
[359090926,1745703041178,-881.52,0.00019795,2]
[359090928,1745703041193,-538.44,0.00019795,2]
[359090930,1745703041204,-538.44,0.00019795,2]
[359090932,1745703041215,-400.0,0.00019795,2]
[359090935,1745703041228,-500.0,0.00019795,2]
[359090937,1745703041243,-400.0,0.00019795,2]
[359090940,1745703041259,-400.0,0.00019795,2]
[359090942,1745703041272,-400.0,0.00019795,2]
[359090944,1745703041282,-500.0,0.00019795,2]
[359090946,1745703041294,-574.81,0.00019795,2]
[359090949,1745703041304,-400.0,0.00019795,2]
[359090951,1745703041318,-400.0,0.00019795,2]
[359090953,1745703041332,-400.0,0.00019795,2]
[359090956,1745703041350,-817.03,0.00019795,2]
[359090959,1745703041364,-400.0,0.00019795,2]
[359090961,1745703041377,-626.13,0.00019795,2]
[359090963,1745703041389,-821.34,0.00019795,2]
[359090965,1745703041402,-400.0,0.00019795,2]
[359090968,1745703041414,-400.0,0.00019795,2]
[359090970,1745703041427,-533.0,0.00019795,2]
[359090972,1745703041440,-669.89,0.00019795,2]
[359090975,1745703041452,-564.46,0.00019795,2]
[359090977,1745703041465,-787.43,0.00019795,2]
[359090979,1745703041479,-1150.16,0.00019795,2]
[359090982,1745703041494,-400.0,0.00019795,2]
[359090984,1745703041507,-400.0,0.00019795,2]
[359090986,1745703041521,-595.67,0.00019795,2]
[359090989,1745703041534,-400.0,0.00019795,2]
[359090991,1745703041548,-741.72,0.00019795,2]
[359090995,1745703041573,-590.34,0.00019795,2]
[359090997,1745703041588,-562.53,0.00019795,2]
[359091000,1745703041602,-464.13,0.00019795,2]
[359091002,1745703041614,-87610.86771759,0.00019796,2]
[359091005,1745703041636,-557924.19307503,0.00019796,2]
[359092114,1745703247466,1000.0,0.00018774,2]
[359092116,1745703387282,217.08215802,0.00033637,60]
[359092117,1745703461862,150.042706,0.00036986,120]
[359092118,1745703464428,150.042706,0.00036986,120]
[359092119,1745703464557,150.042706,0.00036986,120]
[359092120,1745703464607,452.23,0.00016835,2]
[359092121,1745703464784,452.23,0.00019099,2]
[359092122,1745703465086,150.042706,0.00036986,120]
[359092123,1745703465528,150.042706,0.00036986,120]
[359092124,1745703465936,150.042706,0.00036986,120]
[359092125,1745703466379,150.042706,0.00036986,120]
[359092126,1745703466795,150.042706,0.00036986,120]
[359092127,1745703467175,150.042706,0.00036986,120]
[359092128,1745703467592,150.042706,0.00036986,120]
[359092129,1745703467992,150.042706,0.00036986,120]
[359092130,1745703468433,150.042706,0.00036986,120]
[359092131,1745703468831,150.042706,0.00036986,120]
[359092132,1745703469220,150.042706,0.00036986,120]
[359092133,1745703469654,150.042706,0.00036986,120]
[359092134,1745703470053,150.042706,0.00036986,120]
[359092135,1745703470445,150.042706,0.00036986,120]
[359092136,1745703470830,150.042706,0.00036986,120]
[359092137,1745703471532,150.042706,0.00036986,120]
[359092138,1745703471834,150.042706,0.00036986,120]
[359092139,1745703496209,150.042706,0.00036986,120]
[359092140,1745703496944,150.042706,0.00036986,120]
[359092141,1745703497568,150.042706,0.00036986,120]
[359092142,1745703497999,150.042706,0.00036986,120]
[359092143,1745703498379,150.042706,0.00036986,120]
[359092144,1745703498802,150.042706,0.00036986,120]
[359092145,1745703499128,150.042706,0.00036986,120]
[359092146,1745703499478,150.042706,0.00036986,120]
[359092147,1745703499819,150.042706,0.00036986,120]
[359092148,1745703500182,150.042706,0.00036986,120]
[359092149,1745703500679,150.042706,0.00036986,120]
[359092150,1745703500947,150.042706,0.00036986,120]
[359092151,1745703501389,150.042706,0.00036986,120]
[359092152,1745703501762,150.042706,0.00036986,120]
[359092153,1745703502191,150.042706,0.00036986,120]
[359092154,1745703502664,150.042706,0.00036986,120]
[359092155,1745703532927,150.042706,0.00019298,2]
[359092156,1745703548277,7159.808434,7.945e-05,2]
[359092157,1745703565043,150.042706,0.00019298,2]
[359092158,1745703607392,157.042706,0.00036986,120]
[359092159,1745703608215,157.042706,0.00036986,120]
[359092160,1745703608857,157.042706,0.00036986,120]
[359092161,1745703609537,157.042706,0.00036986,120]
[359092162,1745703610270,157.042706,0.00036986,120]
[359092163,1745703617872,157.042706,0.00036986,120]
[359092164,1745703618769,157.042706,0.00036986,120]
[359092165,1745703619703,157.042706,0.00036986,120]
[359092166,1745703654436,157.042706,0.00036986,120]
[359092167,1745703757463,-156.6,0.00019306,2]
[359092168,1745703757493,-150.042706,0.00019498,2]
[359092170,1745703983029,250.0,0.00017,2]
[359092171,1745703984117,29.76462611,0.00019,2]
[359092172,1745703984142,139.2486103,0.00019,2]
[359092173,1745703984167,130.98676359,0.00019,2]
[359092174,1745704035087,200.0,0.0003698,60]
[359092175,1745704048924,58.5014253,0.00018731,2]
[359092176,1745704048951,95.1285747,0.00018731,2]
[359092178,1745704105160,200.0,0.0003013,120]
[359092181,1745704154683,211.15,0.00027425,30]
[359092182,1745704157631,156.0,0.0003,30]
[359092187,1745704231764,-250.0,0.0001954,2]
[359092188,1745704231775,-200.0,0.00019546,2]
[359092189,1745704231785,-300.0,0.00019584,2]
[359092190,1745704231795,-1200.0,0.00019584,2]
[359092191,1745704231806,-300.0,0.00019584,2]
[359092192,1745704231815,-316.6195,0.00019585,2]
[359092193,1745704231825,-3926.8923,0.00019585,2]
[359092194,1745704231835,-5473.22868481,0.00019585,2]
[359092195,1745704231846,-519.20423304,0.00019585,2]
[359092196,1745704231858,-487.56775065,0.00019585,2]
[359092197,1745704231878,-218.0911315,0.00019585,2]
[359092198,1745704231887,-150.042706,0.00019598,2]
[359092199,1745704231898,-500.0,0.00019616,2]
[359092200,1745704231908,-49.70320412,0.00019652,2]
[359092201,1745704231925,-546.56397349,0.00019652,2]
[359092202,1745704231939,-291.26119028,0.00019652,2]
[359092203,1745704231951,-98.18168115,0.00019652,2]
[359092204,1745704231961,-208.0,0.00019653,2]
[359092205,1745704231971,-1106.04906152,0.00019664,2]
[359092206,1745704231983,-2145.020002,0.00019664,2]
[359092207,1745704232011,-575.40914099,0.00019664,2]
[359092208,1745704232029,-250.28547636,0.00019664,2]
[359092209,1745704232041,-723.08598451,0.00019664,2]
[359092210,1745704232053,-550.44427226,0.00019664,2]
[359092211,1745704232083,-3914.5447582,0.00019664,2]
[359092212,1745704232094,-850.0,0.00019672,2]
[359092213,1745704232103,-3685.31493875,0.00019673,2]
[359092214,1745704232115,-539.75,0.00019673,2]
[359092410,1745704237797,-150.0,0.00019672,2]
[359092411,1745704237807,-500.0,0.00019672,2]
[359092412,1745704237817,-6992.69506125,0.00019673,2]
[359092413,1745704237827,-151.0,0.00019673,2]
[359092414,1745704237837,-207.4,0.00019673,2]
[359092415,1745704237847,-19999.99,0.00019674,2]
[359092416,1745704237857,-985.710049,0.0001968,2]
[359092417,1745704237867,-2500.0,0.00019682,2]
[359092418,1745704237877,-1279.73457522,0.00019683,2]
[359092419,1745704237887,-7107.4477,0.00019684,2]
[359092420,1745704237897,-30298.6514,0.00019685,2]
[359092421,1745704237909,-573.694,0.00019685,2]
[359092422,1745704237919,-1000.0,0.00019685,2]
[359092423,1745704237932,-17316.5065,0.00019685,2]
[359092424,1745704237942,-1307.6206,0.00019685,2]
[359092425,1745704237952,-16189.1662,0.00019685,2]
[359092426,1745704237962,-1014.089,0.00019685,2]
[359092427,1745704237972,-6509.078,0.00019685,2]
[359092428,1745704237982,-1598.7898,0.00019685,2]
[359092429,1745704237992,-831.0693,0.00019695,2]
[359092430,1745704238003,-28042.31664941,0.000197,2]
[359092431,1745704238013,-8578.46373005,0.00019706,2]
[359092432,1745704238024,-72438.78576516,0.00019706,2]
[359092433,1745704238033,-985.710049,0.00019707,2]
[359092434,1745704238043,-1279.73457521,0.00019707,2]
[359092435,1745704238053,-8578.46373005,0.00019719,2]
[359092436,1745704238063,-3917.72308116,0.00019723,2]
[359092437,1745704238073,-150.0,0.00019728,2]
[359092438,1745704238084,-3917.72308116,0.0001973,2]
[359092440,1745704238094,-150.0,0.00019731,2]
[359092442,1745704238104,-150.0,0.00019732,2]
[359092444,1745704238114,-150.0,0.00019733,2]
[359092446,1745704238124,-985.710049,0.00019735,2]
[359092448,1745704238134,-150.0,0.00019736,2]
[359092450,1745704238144,-150.0,0.0001974,2]
[359092452,1745704238154,-150.0,0.00019741,2]
[359092454,1745704238165,-150.0,0.00019742,2]
[359092456,1745704238175,-150.0,0.00019747,2]
[359092458,1745704238184,-150.0,0.00019747,2]
[359092460,1745704238194,-150.0,0.00019748,2]
[359092462,1745704238204,-150.0,0.00019749,2]
[359092464,1745704238215,-150.0,0.00019749,2]
[359092466,1745704238225,-1004.12473056,0.00019751,2]
[359092468,1745704238236,-150.0,0.00019752,2]
[359092470,1745704238246,-500.0,0.00019753,2]
[359092472,1745704238255,-150.0,0.00019754,2]
[359092474,1745704238265,-150.0,0.00019757,2]
[359092476,1745704238277,-72438.78576516,0.00019757,2]
[359092478,1745704238288,-150.0,0.00019761,2]
[359092480,1745704238300,-150.0,0.00019761,2]
[359092482,1745704238310,-150.0,0.00019762,2]
[359092484,1745704238320,-985.710049,0.00019762,2]
[359092486,1745704238330,-150.0,0.00019769,2]
[359092488,1745704238340,-150.0,0.00019769,2]
[359092490,1745704238350,-150.0,0.00019769,2]
[359092492,1745704238360,-150.0,0.0001977,2]
[359092494,1745704238370,-150.0,0.00019772,2]
[359092496,1745704238380,-150.0,0.00019774,2]
[359092498,1745704238391,-252.44,0.00019774,2]
[359092500,1745704238405,-150.0,0.00019776,2]
[359092501,1745704238417,-150.0,0.00019779,2]
[359092504,1745704238427,-187.0,0.00019781,2]
[359092505,1745704238437,-199.03357293,0.00019781,2]
[359092507,1745704238447,-206.70529025,0.00019781,2]
[359092510,1745704238456,-183.0777767,0.00019781,2]
[359092512,1745704238466,-500.0,0.00019781,2]
[359092513,1745704238476,-192.49349546,0.00019781,2]
[359092515,1745704238486,-500.0,0.00019781,2]
[359092518,1745704238497,-500.0,0.00019781,2]
[359092520,1745704238507,-500.0,0.00019781,2]
[359092522,1745704238516,-500.0,0.00019781,2]
[359092524,1745704238526,-383.00964834,0.00019781,2]
[359092526,1745704238536,-400.0,0.00019781,2]
[359092528,1745704238546,-400.0,0.00019781,2]
[359092530,1745704238555,-459.6,0.00019781,2]
[359092532,1745704238565,-422.38,0.00019781,2]
[359092534,1745704238575,-400.0,0.00019781,2]
[359092536,1745704238585,-400.0,0.00019781,2]
[359092538,1745704238595,-400.0,0.00019781,2]
[359092540,1745704238605,-400.0,0.00019781,2]
[359092542,1745704238615,-400.0,0.00019781,2]
[359092544,1745704238625,-400.0,0.00019781,2]
[359092546,1745704238635,-449.72,0.00019781,2]
[359092548,1745704238646,-818.39,0.00019781,2]
[359092550,1745704238655,-429.12,0.00019781,2]
[359092552,1745704238666,-561.49,0.00019781,2]
[359092554,1745704238676,-400.0,0.00019781,2]
[359092556,1745704238687,-400.0,0.00019781,2]
[359092558,1745704238697,-547.9,0.00019781,2]
[359092560,1745704238707,-698.81,0.00019781,2]
[359092562,1745704238717,-428.21,0.00019781,2]
[359092564,1745704238727,-603.88,0.00019781,2]
[359092566,1745704238738,-400.0,0.00019781,2]
[359092568,1745704238748,-400.0,0.00019781,2]
[359092570,1745704238758,-415.48,0.00019781,2]
[359092572,1745704238768,-424.92,0.00019781,2]
[359092574,1745704238778,-6193.26,0.00019781,2]
[359092576,1745704238788,-400.0,0.00019781,2]
[359092578,1745704238799,-400.0,0.00019781,2]
[359092580,1745704238809,-400.0,0.00019781,2]
[359092582,1745704238819,-500.0,0.00019781,2]
[359092584,1745704238829,-8719.009226,0.00019781,2]
[359092586,1745704238838,-400.0,0.00019781,2]
[359092588,1745704238849,-138174.5069999,0.00019782,2]
[359092590,1745704238859,-5496.06,0.00019782,2]
[359092592,1745704238869,-66164.7452063,0.00019782,2]
[359092594,1745704238880,-150.0,0.00019783,2]
[359092596,1745704238890,-400.0,0.00019783,2]
[359092598,1745704238901,-511.99031012,0.00019783,2]
[359092600,1745704238913,-400.0,0.00019783,2]
[359092602,1745704238923,-400.0,0.00019783,2]
[359092603,1745704238938,-400.0,0.00019783,2]
[359092605,1745704238948,-500.0,0.00019783,2]
[359092607,1745704238958,-500.0,0.00019783,2]
[359092609,1745704238968,-400.0,0.00019783,2]
[359092612,1745704238979,-400.0,0.00019783,2]
[359092614,1745704238990,-400.0,0.00019783,2]
[359092616,1745704238999,-400.0,0.00019783,2]
[359092618,1745704239011,-400.0,0.00019783,2]
[359092620,1745704239021,-400.0,0.00019783,2]
[359092622,1745704239031,-505.87036558,0.00019783,2]
[359092624,1745704239041,-400.0,0.00019783,2]
[359092626,1745704239050,-194.12937375,0.00019783,2]
[359092628,1745704239061,-400.0,0.00019783,2]
[359092630,1745704239070,-549.72608562,0.00019783,2]
[359092631,1745704239080,-400.0,0.00019783,2]
[359092633,1745704239091,-400.0,0.00019783,2]
[359092635,1745704239101,-500.0,0.00019783,2]
[359092638,1745704239111,-400.0,0.00019783,2]
[359092640,1745704239121,-400.0,0.00019783,2]
[359092642,1745704239131,-400.0,0.00019783,2]
[359092644,1745704239141,-400.0,0.00019783,2]
[359092646,1745704239151,-500.0,0.00019783,2]
[359092648,1745704239161,-400.0,0.00019783,2]
[359092650,1745704239171,-400.0,0.00019783,2]
[359092652,1745704239181,-500.0,0.00019783,2]
[359092654,1745704239190,-400.0,0.00019783,2]
[359092655,1745704239200,-500.0,0.00019783,2]
[359092657,1745704239210,-362.35328234,0.00019783,2]
[359092660,1745704239221,-558.95,0.00019783,2]
[359092662,1745704239231,-400.0,0.00019783,2]
[359092663,1745704239240,-286.41314099,0.00019783,2]
[359092666,1745704239250,-723.76,0.00019783,2]
[359092668,1745704239260,-400.0,0.00019783,2]
[359092670,1745704239270,-400.0,0.00019783,2]
[359092672,1745704239282,-400.0,0.00019783,2]
[359092674,1745704239292,-518.69340176,0.00019783,2]
[359092676,1745704239303,-400.0,0.00019783,2]
[359092678,1745704239314,-400.0,0.00019783,2]
[359092680,1745704239324,-400.0,0.00019783,2]
[359092682,1745704239335,-400.0,0.00019783,2]
[359092684,1745704239345,-400.0,0.00019783,2]
[359092686,1745704239355,-400.0,0.00019783,2]
[359092688,1745704239365,-400.0,0.00019783,2]
[359092690,1745704239375,-507.19374381,0.00019783,2]
[359092691,1745704239385,-536.57836525,0.00019783,2]
[359092694,1745704239396,-400.0,0.00019783,2]
[359092696,1745704239407,-520.82,0.00019783,2]
[359092697,1745704239417,-400.0,0.00019783,2]
[359092699,1745704239427,-400.0,0.00019783,2]
[359092702,1745704239438,-400.0,0.00019783,2]
[359092704,1745704239448,-400.0,0.00019783,2]
[359092706,1745704239458,-400.0,0.00019783,2]
[359092708,1745704239468,-500.0,0.00019783,2]
[359092709,1745704239478,-500.0,0.00019783,2]
[359092712,1745704239488,-400.0,0.00019783,2]
[359092713,1745704239498,-250.0,0.00019783,2]
[359092715,1745704239508,-647.33,0.00019783,2]
[359092717,1745704239518,-252.376979,0.00019783,2]
[359092719,1745704239528,-534.30097685,0.00019783,2]
[359092722,1745704239540,-500.0,0.00019783,2]
[359092724,1745704239550,-500.0,0.00019783,2]
[359092725,1745704239559,-500.0,0.00019783,2]
[359092727,1745704239570,-400.0,0.00019783,2]
[359092729,1745704239580,-400.0,0.00019783,2]
[359092731,1745704239590,-166.423983,0.00019783,2]
[359092733,1745704239599,-400.0,0.00019783,2]
[359092735,1745704239609,-400.0,0.00019783,2]
[359092737,1745704239620,-400.0,0.00019783,2]
[359092739,1745704239630,-500.0,0.00019783,2]
[359092741,1745704239640,-400.0,0.00019783,2]
[359092743,1745704239650,-531.69,0.00019783,2]
[359092745,1745704239660,-400.0,0.00019783,2]
[359092747,1745704239670,-500.0,0.00019783,2]
[359092749,1745704239679,-400.0,0.00019783,2]
[359092751,1745704239689,-400.0,0.00019783,2]
[359092753,1745704239702,-828.69,0.00019783,2]
[359092755,1745704239712,-400.0,0.00019783,2]
[359092757,1745704239722,-500.0,0.00019783,2]
[359092759,1745704239733,-400.0,0.00019783,2]
[359092761,1745704239743,-400.0,0.00019783,2]
[359092763,1745704239753,-500.0,0.00019783,2]
[359092765,1745704239763,-400.0,0.00019783,2]
[359092767,1745704239774,-258.837607,0.00019783,2]
[359092769,1745704239784,-400.0,0.00019783,2]
[359092771,1745704239795,-500.0,0.00019783,2]
[359092773,1745704239805,-500.0,0.00019783,2]
[359092775,1745704239815,-500.0,0.00019783,2]
[359092777,1745704239825,-400.0,0.00019783,2]
[359092779,1745704239836,-400.0,0.00019783,2]
[359092781,1745704239846,-400.0,0.00019783,2]
[359092783,1745704239856,-500.0,0.00019783,2]
[359092785,1745704239867,-500.0,0.00019783,2]
[359092787,1745704239878,-500.0,0.00019783,2]
[359092789,1745704239889,-505.57630559,0.00019783,2]
[359092791,1745704239899,-414.19996969,0.00019783,2]
[359092814,1745704240157,-500.0,0.00019783,2]
[359092816,1745704240170,-500.0,0.00019783,2]
[359092818,1745704240180,-400.0,0.00019783,2]
[359092820,1745704240191,-400.0,0.00019783,2]
[359092822,1745704240201,-400.0,0.00019783,2]
[359092824,1745704240212,-400.0,0.00019783,2]
[359092826,1745704240222,-624.09,0.00019783,2]
[359092828,1745704240232,-400.0,0.00019783,2]
[359092829,1745704240242,-400.0,0.00019783,2]
[359092830,1745704240253,-579.11,0.00019783,2]
[359092831,1745704240265,-417.63,0.00019783,2]
[359092832,1745704240276,-400.0,0.00019783,2]
[359092833,1745704240286,-400.0,0.00019783,2]